Cogmind - Beta 13 @@@ ROGUE MODE // 2024.04.23 @ 09:28:58 Player: Tyrannosaurus Flex Result: Destroyed by G-34 Mercenary with Small Laser Performance ------------- Evolutions (0) 0 Regions Visited (2) 400 Robots Destroyed (33) 165 Value Destroyed (857) 857 Prototype IDs (3) 60 Alien Tech Used (0) 0 Bonus (0) 0 TOTAL SCORE: 1482 Bonus ------- None Cogmind --------- Core Integrity 0/250 Matter 300/300 Energy 74/100 System Corruption 0% Temperature Cool (22) Movement Walking (120) Location -10/Mines Parts ------- > --- POWER (1) -------- (None) > --- PROPULSION (2) --- Aluminum Leg Aluminum Leg > --- UTILITY (2) ------ Cooling System Medium Storage Unit > --- WEAPON (2) ------- Spread Laser Spread Laser > --- INVENTORY (10) --- Ion Engine Aluminum Leg Aluminum Leg Aluminum Leg Cooling System Large Storage Unit Large Matter Pod (150) Spread Laser Grenade Launcher Rocket Launcher Peak State ------------ > --- POWER ------------ Light Nuclear Core > --- PROPULSION ------- Aluminum Leg Aluminum Leg > --- UTILITY ---------- Cooling System Medium Storage Unit > --- WEAPON ----------- Spread Laser Spread Laser > --- INVENTORY -------- Ion Engine Aluminum Leg Aluminum Leg Aluminum Leg Cooling System Large Storage Unit Large Matter Pod Spread Laser Spread Laser Grenade Launcher [Rating: 13] Favorites ----------- Power Ion Engine Engine Ion Engine Power Core Light Nuclear Core Propulsion Aluminum Leg Leg Aluminum Leg Utility Cooling System Device Cooling System Storage Medium Storage Unit Weapon Spread Laser Energy Gun Spread Laser Ballistic Gun Assault Rifle Launcher Grenade Launcher Build | -11 -10 -10 ------- Run | Yrd Mat Min Slots Evolved . | . . . Power . | . . . Propulsion . | . . . Utility . | . . . Weapon . | . . . Parts Attached 33 | 6 20 7 Power 4 | 1 2 1 Engine 3 | 1 2 . Core 1 | . . 1 Reactor . | . . . Propulsion 12 | 2 7 3 Treads . | . . . Leg 12 | 2 7 3 Wheel . | . . . Hover . | . . . Flight . | . . . Utility 6 | 1 5 . Device 3 | . 3 . Storage 3 | 1 2 . Processor . | . . . Hackware . | . . . Protection . | . . . Artifact . | . . . Weapon 11 | 2 6 3 Energy Gun 7 | 1 4 2 Energy Cannon . | . . . Ballistic Gun 3 | 1 2 . Ballistic Cannon . | . . . Launcher 1 | . . 1 Special Weapon . | . . . Impact Weapon . | . . . Slashing Weapon . | . . . Piercing Weapon . | . . . Special Melee Weapon . | . . . Unidentified Prototypes . | . . . Parts Lost 3 | . . 3 Power 1 | . . 1 Propulsion 1 | . . 1 Utility . | . . . Weapon 1 | . . 1 Highest Loss Streak 1 | . . 1 To Critical Strikes . | . . . Average Slot Usage (%) 98 | . 97 99 Engine 10 | . 14 5 Core 3 | . . 8 Leg 27 | . 28 27 Device 12 | . 11 14 Storage 14 | . 14 14 Energy Gun 25 | . 23 27 Ballistic Gun 2 | . 3 . Naked Turns . | . . . Heaviest Build 23 | 13 23 23 Greatest Support 20 | 20 20 20 Greatest Overweight (x) 2 | . 1 2 Average Overweight (x) . | . . . Largest Inventory Capacity 10 | 8 10 10 Average Capacity 9 | 7 9 10 Most Carried 10 | 6 10 10 Average Carried 9 | 3 8 9 Final Capacity 10 | 8 10 10 Final Carried 10 | 6 10 10 Class Distribution -------------------- 95% | Mutant 4% | Scavenger-Mutant Dominant Class ---------------- Mutant | -10/Materials Mutant | -10/Mines Resources | -11 -10 -10 ----------- Run | Yrd Mat Min Matter Collected 766 | 173 434 159 Remotely . | . . . Salvage Created 793 | . 434 359 Parts 62 | . 33 29 Haulers Intercepted . | . . . Recyclers Shooed 1 | . 1 . Parts Field Recycled . | . . . Retrieved Matter . | . . . Parts Self-Destructed . | . . . Prevented . | . . . Kills | -11 -10 -10 ------- Run | Yrd Mat Min Combat Hostiles Destroyed 33 | . 16 17 Guns 31 | . 16 15 AOE 2 | . . 2 Classes Destroyed 6 | . 3 3 Worker 1 | . . 1 Watcher 1 | . 1 . Swarmer 12 | . 6 6 Grunt 17 | . 10 7 Sentry 2 | . . 2 Assembled 2 | . . 2 Best Kill Streak 6 | . 6 5 Combat Bots Only 6 | . 6 4 Max Kills in Single Turn 2 | . 1 2 Gunslinging . | . . . Exploded 2 | . . 2 Melee . | . . . Uniques/NPCs Destroyed . | . . . Combat | -11 -10 -10 -------- Run | Yrd Mat Min Hostile Shots Fired 137 | . 73 64 Missed 32 | . 13 19 Damage Taken 1216 | . 658 558 Core 261 | . 192 69 Absorbed by Shields . | . . . Regen/Repaired (Parts) 69 | . 69 . Core Remaining (%) 100 | 100 . . Volleys Fired 77 | . 48 29 Largest 2 | . 2 2 Hottest 130 | . 130 130 Shots Fired 148 | . 91 57 Gun 147 | . 91 56 Cannon . | . . . Launcher 1 | . . 1 Special . | . . . Kinetic 27 | . 27 . Thermal 120 | . 64 56 Explosive 1 | . . 1 Electromagnetic . | . . . Robot Hit Streak 23 | . 12 23 Robot Miss Streak 8 | . 4 8 Penetration Max . | . . . Secondary Targets 3 | . 1 2 Max Gunslinging Chain 1 | . 1 1 Shots Hit Robots 115 | . 65 50 Core Hits 120 | . 48 72 Critical Kills . | . . . Critical Parts Destroyed 1 | . 1 . Critical Strikes 1 | . 1 . Destroy 1 | . 1 . Melee Attacks . | . . . Impact . | . . . Slashing . | . . . Piercing . | . . . Sneak Attacks . | . . . Combat Hostiles . | . . . Follow-up Attacks . | . . . Damage Inflicted 1558 | . 835 723 Guns 1487 | . 835 652 Cannons . | . . . Explosions 68 | . . 68 Melee . | . . . Ramming 3 | . . 3 Kinetic 207 | . 207 . Thermal 1280 | . 628 652 Explosive 68 | . . 68 Electromagnetic . | . . . Impact . | . . . Slashing . | . . . Piercing . | . . . Highest Corruption . | . . . Average Corruption . | . . . Corruption Purged . | . . . Corruption Blocked . | . . . Overload Shots . | . . . Overflow Damage 14 | . . 14 Projectiles . | . . . Explosions 14 | . . 14 Melee . | . . . Knockbacks . | . . . Impact . | . . . Kinetic . | . . . Secondary . | . . . Self-Inflicted Damage 32 | . . 32 Shots 1 | . . 1 Rammed . | . . . Targets Rammed 1 | . . 1 Kicked 1 | . . 1 Crushed . | . . . Highest Temperature 117 | . 117 42 Average Temperature 23 | . 29 14 Received Heat Transfer 483 | . 303 180 Siege Activations . | . . . Robots Corrupted . | . . . Combat Hostiles . | . . . Parts Fried . | . . . Impact Corruptions . | . . . Robots Melted . | . . . Combat Hostiles . | . . . Parts Melted 2 | . . 2 Heat Transferred 1830 | . 975 855 Parts Sabotaged . | . . . Parts Stolen . | . . . Parts Stripped . | . . . Power Chain Reactions . | . . . Alert | -11 -10 -10 ------- Run | Yrd Mat Min Peak Influence 186 | . 186 160 Initial . | . . . Average 59 | . 61 62 Maximum Alert Level . | . . . Low Security (%) 100 | 100 100 100 Level 1 . | . . . Level 2 . | . . . Level 3 . | . . . Level 4 . | . . . Level 5 . | . . . High Security . | . . . Max Security . | . . . Squads Dispatched 4 | . 4 . Investigation 2 | . 2 . Extermination . | . . . Reinforcement 2 | . 2 . Assault . | . . . Garrison . | . . . Intercept . | . . . Searches Triggered . | . . . Construction Impeded . | . . . Haulers Reinforced . | . . . Active Scanning Responses . | . . . Cargo Convoy Interrupts . | . . . Stealth | -11 -10 -10 --------- Run | Yrd Mat Min Distress Signals 1 | . 1 . Communications Jammed . | . . . Distress Signals . | . . . Times Spotted 43 | . 24 19 Peak Tracking Total 5 | . 5 4 Tactical Retreats 2 | . 1 1 Traps | -11 -10 -10 ------- Run | Yrd Mat Min Traps Triggered 1 | . 1 . Indirectly . | . . . Trap Hack Attempts . | . . . Triggered . | . . . Disarmed . | . . . Reprogrammed . | . . . Reused . | . . . Traps Extracted . | . . . Installed . | . . . Triggered . | . . . Machines | -11 -10 -10 ---------- Run | Yrd Mat Min Machines Disabled . | . . . Max in Single Turn . | . . . Machines Repaired . | . . . Machines Dismantled . | . . . Machines Sabotaged . | . . . Overloaded Fab Kills . | . . . Hacking | -11 -10 -10 --------- Run | Yrd Mat Min Machines Accessed 7 | . 6 1 Terminals 6 | . 5 1 Fabricators . | . . . Repair Stations 1 | . 1 . Recycling Units . | . . . Scanalyzers . | . . . Garrison Access . | . . . Total Hacks 32 | . 28 4 Successful 18 | . 18 . Failed 14 | . 10 4 Catastrophic 1 | . . 1 Database Lockouts . | . . . Manual 12 | . 12 . Terminals 23 | . 19 4 Fabricators . | . . . Repair Stations 9 | . 9 . Recycling Units . | . . . Scanalyzers . | . . . Garrison Access . | . . . Terminal Hacks 6 | . 6 . Robot Analysis 2 | . 2 . Prototype ID Bank 2 | . 2 . Terminal Index 1 | . 1 . Hauler Manifests 1 | . 1 . Fabricator Hacks . | . . . Repair Station Hacks 8 | . 8 . Scan Component 4 | . 4 . Repair 4 | . 4 . Recycling Unit Hacks . | . . . Scanalyzer . | . . . Garrison Access Hacks . | . . . Unauthorized Hacks 4 | . 4 . Terminals 4 | . 4 . Botnet 4 | . 4 . Fabricators . | . . . Repair Stations . | . . . Recycling Units . | . . . Scanalyzers . | . . . Garrison Access . | . . . Data Cores Recovered . | . . . Used . | . . . Hacking Detections 7 | . 6 1 Full Trace Events 1 | . 1 . Feedback Events . | . . . Feedback Blocked . | . . . Robot Schematics Acquired . | . . . Robots Built . | . . . Authchips . | . . . Time . | . . . Total Robot Build Rating . | . . . Part Schematics Acquired . | . . . Parts Built . | . . . Authchips . | . . . Time . | . . . Total Part Build Rating . | . . . Parts Repaired 4 | . 4 . Time 122 | . 122 . Parts Recycled . | . . . Recycled Matter . | . . . Retrieved Matter . | . . . Retrieved Components . | . . . Parts Scanalyzed . | . . . Part Schematics Acquired . | . . . Parts Damaged . | . . . Bothacking | -11 -10 -10 ------------ Run | Yrd Mat Min Used RIF Installer . | . . . Robots Hacked . | . . . Non-combat . | . . . Combat . | . . . Robot Hacks Applied . | . . . Relay Couplers Released . | . . . Fabnet Peak Effective % . | . . . Robots Rewired . | . . . Allies Hacked . | . . . Hacks Repelled . | . . . Allies | -11 -10 -10 -------- Run | Yrd Mat Min Total Allies . | . . . Largest Group . | . . . Highest-Rated Group . | . . . Highest-Rated Ally . | . . . Total Orders . | . . . Ally Attacks . | . . . Total Damage . | . . . Kills . | . . . Allies Corrupted . | . . . Allies Melted . | . . . Intel | -11 -10 -10 ------- Run | Yrd Mat Min Robot Analysis Total 2 | . 2 . Derelict Logs Recovered 1 | . . 1 Drone Launches . | . . . Drone Recoveries . | . . . Exploration | -11 -10 -10 ------------- Run | Yrd Mat Min Turns Passed 3696 | 115 2210 1371 Spaces Moved 1910 | 85 1168 657 Core 3 | 3 . . Treads . | . . . Legs 1907 | 82 1168 657 Wheels . | . . . Hover . | . . . Flight . | . . . Fastest Speed 50 | 50 120 120 Average Speed 167 | 117 158 189 Slowest Speed 260 | 120 190 260 Overloaded Moves . | . . . Propulsion Burnouts . | . . . Robots Hopped . | . . . Cave-ins Triggered . | . . . Exploration Rate (%) 61 | 4 100 80 Regions Visited 2 Branch Regions 1 Pre-discovered Areas 1 | . . 1 Known Exits Taken . | . . . Unknown Exits Taken 2 | 1 1 . Scrap Searched . | . . . Spaces Dug . | . . . Terrain Destroyed 1 | . . 1 Melee . | . . . Projectile . | . . . AOE 1 | . . 1 Terrain Rammed . | . . . Walls Destroyed . | . . . Machines Disabled . | . . . Actions | -11 -10 -10 --------- Run | Yrd Mat Min Total 2265 | 97 1444 724 Wait 202 | . 176 26 Move 1908 | 84 1167 657 Hop . | . . . Pick Up 17 | 7 9 1 Fast Attach 15 | 5 9 1 Attach 2 | 1 . 1 Detach 4 | . 4 . Swap 16 | . 11 5 Drop 23 | . 20 3 Fire 77 | . 48 29 Melee . | . . . Ram . | . . . Kick 1 | . . 1 Crush . | . . . Escape Stasis . | . . . Rewire . | . . . Trap . | . . . Miscellaneous . | . . . Route ------- -11/Scrapyard -10/Materials (discovered 6 exits: [*Mat x3] / *Min x2 / [*Sub]) -10/Mines History --------- Turn | Location | Event 6 | -11/Scrapyard | Discovered new exit (range 16) 116 | -11/Scrapyard | Entered Materials 308 | -10/Materials | Build established: Mutant 485 | -10/Materials | Discovered new exit (range 15) 672 | -10/Materials | Discovered new exit (range 13) 779 | -10/Materials | Discovered new exit (range 8) 843 | -10/Materials | Core integrity fell below 50% 959 | -10/Materials | Discovered new exit (range 6) 970 | -10/Materials | Discovered new exit (range 7) 1545 | -10/Materials | Repaired Aluminum Leg 1579 | -10/Materials | Repaired Cooling System 1612 | -10/Materials | Repaired Spread Laser 1646 | -10/Materials | Repaired Spread Laser 1779 | -10/Materials | Discovered new exit (range 5) 2326 | -10/Materials | Entered Mines 2409 | -10/Mines | Core integrity fell below 20% 2556 | -10/Mines | Learned location of Zion (-7) 2910 | -10/Mines | A weapon hastily lodged in a ceiling crevice suddenly fell to the ground 3419 | -10/Mines | Excavation squad dispatched 3419 | -10/Mines | A large section of the Mines collapsed 3661 | -10/Mines | Received a Rocket Launcher from a helpful Derelict 3669 | -10/Mines | Excavation squad dispatched 3697 | -10/Mines | Destroyed by G-34 Mercenary with Small Laser Last Messages --------------- 03658_ US-TTW(g): "Everyone knows a good old rocket launcher goes a long way." 03659_ US-TTW(g): "Need to get rid of a swarm? Done. Need a big hole in the wall? Done." 03659_ K-01 Serf collects debris. 03660_ US-TTW(g): "Need a small hole in the wall? Leave that to the mining laser wimps, I say!" 03661_ US-TTW(g): "Would you like a rocket launcher? I know I would if I were you, so I'm going to lend you mine." 03661_ US-TTW(g) slips back into the shadows. 03662_ K-01 Serf collects debris. 03666_ Dropped Aluminum Leg. 03666_ Acquired Rocket Launcher. 03669_ ALERT: Derelict activity in mines confirmed. Dispatching additional escorted excavation squad. 03672_ K-01 Serf collects debris. 03692_ Lgt. Nuclear Core destroyed. 03694_ G-47 Trooper destroyed. 03695_ K-01 Serf collects debris. Map ----- +----------------------------------------------------+ | ####################? | | #### #? | | ############??## % %* #? | | ???????????????### ########### ### #? | | ???????###???????## [[ #?????????# ## ## | | ?####### #????????## =* #????????## | | ?# ##????????# % #????????# ## | | ## ### ##???????## " " #????????# ##? | | #?# #????????## ""#????????# ###?? | | #?# #?????????# " "#????????## ##???# | | #?# ##???????## #?????????## #????# | | ### ######??# ; #??????????###????# | | # ### ## ##?#;k*% ## """ #????????????# | | # #### #?##t #### " #????????????# | | # #?## #??# ##???# ## #????????????# | | #??# ##??# ;##????? #?? #????????????# | | #??# ##???# ####### #????????????????? | | ##??## ##???## # #????????????????? | | ####????#####???## %%; #????????????????? | | #???????????????# ; = ######?? #??????????? | | ## #??????????????## ##### #??????????? | | ?# #??????????????# ; #??????????? | | ?# #?????######???# ; % #???????????? | | ?# ####### ##??## % ##### ##???????????? | | ?# #???#####% #????? #????????????? | | ?# ###### #??????##=@#??????? ????????????? | | ?# #????## ##??????#[gg#???????? #???????????? | | ## ############??????# g #???????????????????? | | #????????????# ????????????????? | | ####### #????????????## """ ?????????????? | | ??????# #?????????????## """ #???????????? | | ??????# #??????????????## """ ???????????? | | ??????# #???????????????## ?????????????????? | | ??????# ##????????????????# t ?????????????????? | | ??????# ##???????????????? ?????????????????? | | ??????# ##??????????????? ????????????????? | | ######## ##??????????????# ????????????????? | | #?# ##??????????????# ????????????????? | | #### ### ##?????????????? ????????????????? | | ???# ## """ #?????????????? ?????????????????? | | #### """ #??????????????????????????????????? | | # """ #??????????????????????????????????? | | #??????????????????????????????????? | | ###### ##??????????????????????????????????? | | ##????####???????????????????????????????????? | | ##????????????????????????????????????????????? | | #?????????????????????????????????????????????? | | ##????????????????????????????????????????????? | | #????????????????????????????????????????????? | | #????????????????????????????????????????????? | +----------------------------------------------------+ Best States ------------- Heat Dissipation 47 Energy Generation 14 Energy Capacity 250 Matter Stores 300 Matter Capacity 450 Sight Range 16 Terrain Scan Density 10 Evasion (%) 55 Item Schematics ----------------- None Robot Schematics ------------------ None Fabricated ------------ Nothing Alien Tech Used ----------------- None Achievements -------------- None Challenges ------------ None Game ------ Seed CompactBackupCharger Manual? 0 Play Time 00:28:21 Cumulative 18.9 hours Start 2024.04.23 @ 09:02:54 End 2024.04.23 @ 09:28:58 Sessions 1 Manual Loads 0 Difficulty Rogue Special Mode None Game No. 23 Rogue 23 Adventurer 0 Explorer 0 Win Type - Total 0 Types 0/0/0/0/0/0/0/0/0 Lore% 16 Gallery% 15 Achievement% 17 Wizard Run 0 Options --------- Layout 2 ASCII 0 Keyboard 1 Movement Numpad Keybinds 0 Fullscreen 1 Font 16/SmallcapsGlow Map View 55x47 Zoom Use 0% Tactical HUD 1 Map Filters NONE Filters NONE Steam 1 RUN: d3895790-9e80-4ce8-b0c7-a2151f6a3ddf